[Event "Speed Chess Championship 2020"]
[Site "Online"]
[Date "2020.11.16"]
[Round "1.27"]
[White "Artemiev, Vladislav"]
[Black "Giri, Anish"]
[Result "1/2-1/2"]
[ECO "A12"]
[WhiteElo "2708"]
[BlackElo "2764"]
[Annotator "ChessBase"]
[PlyCount "136"]
[EventDate "2020.10.31"]
[EventType "k.o."]
[EventCountry "NET"]
[SourceTitle "playchess.com"]
[Source "ChessBase"]
[SourceQuality "1"]
[TimeControl "60+1"]

1. b3 {[%emt 0:00:01]} Nf6 {[%emt 0:00:01]} 2. Bb2 {[%emt 0:00:00]} d5 {[%emt 0:00:00]} 3. Nf3 {[%emt 0:00:01]} Bf5 {[%emt 0:00:00]} 4. g3 {[%emt 0:00:01]} e6 {[%emt 0:00:01]} 5. Bg2 {[%emt 0:00:00]} h6 {[%emt 0:00:00]} 6. O-O {[%emt 0:00:01]} Be7 {[%emt 0:00:00]} 7. c4 {[%emt 0:00:00]} O-O {[%emt 0:00:01]} 8. d3 {[%emt 0:00:02]} c6 {[%emt 0:00:00]} 9. Nbd2 {[%emt 0:00:00]} Nbd7 {[%emt 0:00:01]} 10. a3 {[%emt 0:00:01]} a5 {[%emt 0:00:01]} 11. Qc2 {[%emt 0:00:02]} Bd6 {[%emt 0:00:01]} 12. e4 {[%emt 0:00:05]} dxe4 {[%emt 0:00:03]} 13. Nxe4 {[%emt 0:00:01]} Be7 {[%emt 0:00:02]} 14. Rfd1 {[%emt 0:00:04]} Qc7 {[%emt 0:00:03]} 15. Qe2 {[%emt 0:00:03]} Rfd8 {[%emt 0:00:03]} 16. Nxf6+ {[%emt 0:00:06]} Bxf6 {[%emt 0:00:01]} 17. Bxf6 {[%emt 0:00:01]} Nxf6 {[%emt 0:00:00]} 18. d4 {[%emt 0:00:01]} Be4 {[%emt 0:00:02]} 19. Qe3 {[%emt 0:00:06]} b5 {[%emt 0:00:03]} 20. Rac1 {[%emt 0:00:07]} Qb7 {[%emt 0:00:03]} 21. Ne5 {[%emt 0:00:04]} Bxg2 {[%emt 0:00:01]} 22. Kxg2 {[%emt 0:00:00]} a4 {[%emt 0:00:05]} 23. bxa4 {[%emt 0:00:10]} Rxa4 {[%emt 0:00:02]} 24. Qf3 {[%emt 0:00:01]} bxc4 {[%emt 0:00:04]} 25. Rxc4 {[%emt 0:00:02]} Rxc4 {[%emt 0:00:02]} 26. Nxc4 {[%emt 0:00:01]} Qb5 {[%emt 0:00:05]} 27. Ne5 {[%emt 0:00:00]} Rd5 {[%emt 0:00:08]} 28. Rc1 {[%emt 0:00:06]} Rxd4 {[%emt 0:00:04]} 29. Nxc6 {[%emt 0:00:02]} Rd7 {[%emt 0:00:00]} 30. Nb4 {[%emt 0:00:05]} Qb8 {[%emt 0:00:06]} 31. Rd1 {[%emt 0:00:03]} Rxd1 {[%emt 0:00:10]} 32. Qxd1 {[%emt 0:00:01]} e5 {[%emt 0:00:04]} 33. Qd3 {[%emt 0:00:06]} Qa8+ {[%emt 0:00:01]} 34. Kg1 {[%emt 0:00:03]} e4 {[%emt 0:00:01]} 35. Qb3 {[%emt 0:00:01]} Ng4 {[%emt 0:00:00]} 36. Qd5 {[%emt 0:00:03]} Qxa3 {[%emt 0:00:04]} 37. Qxe4 {[%emt 0:00:02]} Qc1+ {[%emt 0:00:02]} 38. Kg2 {[%emt 0:00:01]} Qh1+ {[%emt 0:00:00]} 39. Kxh1 {[%emt 0:00:01]} Nxf2+ {[%emt 0:00:00]} 40. Kg2 {[%emt 0:00:00]} Nxe4 {[%emt 0:00:00]} 41. Nd3 {[%emt 0:00:01]} g5 {[%emt 0:00:01]} 42. Kf3 {[%emt 0:00:00]} Nf6 {[%emt 0:00:01]} 43. g4 {[%emt 0:00:03]} Kf8 {[%emt 0:00:01]} 44. Nb4 {[%emt 0:00:02]} Ke7 {[%emt 0:00:01]} 45. Nc6+ {[%emt 0:00:00]} Ke6 {[%emt 0:00:01]} 46. Nd8+ {[%emt 0:00:01]} Ke7 {[%emt 0:00:01]} 47. Nc6+ {[%emt 0:00:00]} Kd7 {[%emt 0:00:01]} 48. Nd4 {[%emt 0:00:02]} Ng8 {[%emt 0:00:03]} 49. Ke4 {[%emt 0:00:01]} Ne7 {[%emt 0:00:02]} 50. Ke5 {[%emt 0:00:01]} Ke8 {[%emt 0:00:01]} 51. Kf6 {[%emt 0:00:02]} Kf8 {[%emt 0:00:00]} 52. Ke5 {[%emt 0:00:00]} Kg7 {[%emt 0:00:01]} 53. Ke4 {[%emt 0:00:02]} Kf6 {[%emt 0:00:01]} 54. Ke3 {[%emt 0:00:02]} Ke5 {[%emt 0:00:01]} 55. Nf3+ {[%emt 0:00:01]} Kd5 {[%emt 0:00:01]} 56. Nd2 {[%emt 0:00:00]} f5 {[%emt 0:00:02]} 57. gxf5 {[%emt 0:00:01]} Nxf5+ {[%emt 0:00:00]} 58. Kf3 {[%emt 0:00:00]} Ke5 {[%emt 0:00:04]} 59. Kg4 {[%emt 0:00:01]} Kf6 {[%emt 0:00:04]} 60. Kh5 {[%emt 0:00:01]} Kg7 {[%emt 0:00:00]} 61. Ne4 {[%emt 0:00:01]} Kh7 {[%emt 0:00:02]} 62. Nxg5+ {[%emt 0:00:01]} hxg5 {[%emt 0:00:00]} 63. Kxg5 {[%emt 0:00:00]} Ng7 {[%emt 0:00:00]} 64. h4 {[%emt 0:00:00]} Ne6+ {[%emt 0:00:01]} 65. Kf5 {[%emt 0:00:01]} Ng7+ {[%emt 0:00:00]} 66. Kf6 {[%emt 0:00:01]} Nh5+ {[%emt 0:00:00]} 67. Kg5 {[%emt 0:00:00]} Ng7 {[%emt 0:00:01]} 68. h5 {[%emt 0:00:00]} Nxh5 {[%emt 0:00:00]} 1/2-1/2

[Event "Speed Chess Championship 2020"]
[Site "Online"]
[Date "2020.11.08"]
[Round "1.28"]
[White "Abdusattorov, Nodirbek"]
[Black "So, Wesley"]
[Result "1-0"]
[ECO "B90"]
[WhiteElo "2662"]
[BlackElo "2816"]
[Annotator "ChessBase"]
[PlyCount "61"]
[EventDate "2020.10.31"]
[EventType "k.o."]
[SourceTitle "playchess.com"]
[Source "ChessBase"]
[SourceQuality "1"]
[TimeControl "60+1"]

1. e4 {[%emt 0:00:01]} c5 {[%emt 0:00:01]} 2. Nf3 {[%emt 0:00:00]} d6 {[%emt 0:00:02]} 3. d4 {[%emt 0:00:01]} cxd4 {[%emt 0:00:00]} 4. Nxd4 {[%emt 0:00:01]} Nf6 {[%emt 0:00:00]} 5. Nc3 {[%emt 0:00:01]} a6 {[%emt 0:00:00]} 6. Be3 {[%emt 0:00:00]} e5 {[%emt 0:00:01]} 7. Nb3 {[%emt 0:00:01]} Be6 {[%emt 0:00:01]} 8. Qd2 {[%emt 0:00:00]} Nbd7 {[%emt 0:00:01]} 9. O-O-O {[%emt 0:00:00]} b5 {[%emt 0:00:03]} 10. Kb1 {[%emt 0:00:02]} Rc8 {[%emt 0:00:02]} 11. f3 {[%emt 0:00:01]} h5 {[%emt 0:00:02]} 12. g3 {[%emt 0:00:01]} Nb6 {[%emt 0:00:03]} 13. Bxb6 {[%emt 0:00:04]} Qxb6 {[%emt 0:00:00]} 14. Nd5 {[%emt 0:00:01]} Nxd5 {[%emt 0:00:01]} 15. exd5 {[%emt 0:00:00]} Bf5 {[%emt 0:00:01]} 16. Bd3 {[%emt 0:00:01]} Bxd3 {[%emt 0:00:00]} 17. Qxd3 {[%emt 0:00:00]} Be7 {[%emt 0:00:01]} 18. Rhg1 {[%emt 0:00:03]} g6 {[%emt 0:00:07]} 19. Nd2 {[%emt 0:00:03]} Kf8 {[%emt 0:00:13]} 20. h3 {[%emt 0:00:01]} Bg5 {[%emt 0:00:05]} 21. Ne4 {[%emt 0:00:02]} Be3 {[%emt 0:00:02]} 22. Rge1 {[%emt 0:00:02]} Bf2 {[%emt 0:00:02]} 23. Re2 {[%emt 0:00:02]} Bc5 {[%emt 0:00:01]} 24. g4 {[%emt 0:00:00]} b4 {[%emt 0:00:02]} 25. Rf1 {[%emt 0:00:07]} hxg4 {[%emt 0:00:03]} 26. fxg4 {[%emt 0:00:00]} Rc7 {[%emt 0:00:03]} 27. Qf3 {[%emt 0:00:02]} a5 {[%emt 0:00:09]} 28. Qf6 {[%emt 0:00:01]} Kg8 {[%emt 0:00:04]} 29. Ng5 {[%emt 0:00:06]} Qb5 {[%emt 0:00:00]} 30. Nxf7 {[%emt 0:00:02]} Rxh3 {[%emt 0:00:09]} 31. Ng5 {[%emt 0:00:03]} 1-0

[Event "Speed Chess Championship 2020"]
[Site "Online"]
[Date "2020.11.04"]
[Round "1.29"]
[White "Firouzja, Alireza"]
[Black "Fedoseev, Vladimir"]
[Result "0-1"]
[ECO "A11"]
[WhiteElo "2749"]
[BlackElo "2676"]
[Annotator "ChessBase"]
[PlyCount "62"]
[EventDate "2020.10.31"]
[EventType "k.o."]
[SourceTitle "playchess.com"]
[Source "ChessBase"]
[SourceQuality "1"]
[TimeControl "60+1"]

1. Nf3 {[%emt 0:00:01]} Nf6 {[%emt 0:00:01]} 2. g3 {[%emt 0:00:00]} d5 {[%emt 0:00:01]} 3. Bg2 {[%emt 0:00:01]} c6 {[%emt 0:00:00]} 4. O-O {[%emt 0:00:02]} Bf5 {[%emt 0:00:01]} 5. c4 {[%emt 0:00:01]} e6 {[%emt 0:00:01]} 6. Qb3 {[%emt 0:00:06]} Qb6 {[%emt 0:00:01]} 7. d3 {[%emt 0:00:01]} Nbd7 {[%emt 0:00:01]} 8. Qc2 {[%emt 0:00:03]} dxc4 {[%emt 0:00:06]} 9. Qxc4 {[%emt 0:00:01]} Qc5 {[%emt 0:00:01]} 10. Qb3 {[%emt 0:00:02]} Qb6 {[%emt 0:00:01]} 11. Qc2 {[%emt 0:00:02]} Be7 {[%emt 0:00:01]} 12. Nc3 {[%emt 0:00:01]} O-O {[%emt 0:00:01]} 13. Be3 {[%emt 0:00:02]} Qc7 {[%emt 0:00:02]} 14. Rac1 {[%emt 0:00:02]} a6 {[%emt 0:00:01]} 15. a3 {[%emt 0:00:01]} Rac8 {[%emt 0:00:03]} 16. Rfd1 {[%emt 0:00:03]} h6 {[%emt 0:00:02]} 17. Qb3 {[%emt 0:00:02]} e5 {[%emt 0:00:01]} 18. Nh4 {[%emt 0:00:09]} Be6 {[%emt 0:00:02]} 19. Qc2 {[%emt 0:00:00]} Ng4 {[%emt 0:00:03]} 20. Bd2 {[%emt 0:00:07]} Bxh4 {[%emt 0:00:02]} 21. gxh4 {[%emt 0:00:00]} Qb6 {[%emt 0:00:01]} 22. Be1 {[%emt 0:00:24]} Bb3 {[%emt 0:00:01]} 23. Qd2 {[%emt 0:00:00]} Bxd1 {[%emt 0:00:01]} 24. Rxd1 {[%emt 0:00:00]} f5 {[%emt 0:00:01]} 25. Qc2 {[%emt 0:00:02]} Kh8 {[%emt 0:00:03]} 26. Na4 {[%emt 0:00:01]} Qd8 {[%emt 0:00:01]} 27. Bb4 {[%emt 0:00:01]} Qxh4 {[%emt 0:00:03]} 28. e3 {[%emt 0:00:00]} Qxh2+ {[%emt 0:00:01]} 29. Kf1 {[%emt 0:00:01]} f4 {[%emt 0:00:02]} 30. Bxf8 {[%emt 0:00:02]} Rxf8 {[%emt 0:00:01]} 31. exf4 {[%emt 0:00:01]} Rxf4 {[%emt 0:00:01]} 0-1

[Event "Speed Chess Championship 2020"]
[Site "Online"]
[Date "2020.12.04"]
[Round "2.2"]
[White "Fedoseev, Vladimir"]
[Black "Nakamura, Hikaru"]
[Result "0-1"]
[ECO "E05"]
[WhiteElo "2676"]
[BlackElo "2736"]
[Annotator "RC"]
[PlyCount "100"]
[EventDate "2020.10.31"]
[EventType "k.o."]
[EventCountry "NET"]
[SourceTitle "playchess.com"]
[Source "ChessBase"]
[SourceQuality "1"]
[TimeControl "300+1"]

1. d4 {[%emt 0:00:01]} Nf6 {[%emt 0:00:01]} 2. c4 {[%emt 0:00:01]} e6 {[%emt 0:00:00]} 3. Nf3 {[%emt 0:00:02]} d5 {[%emt 0:00:01]} 4. g3 {[%emt 0:00:00]} Be7 {[%emt 0:00:03]} 5. Bg2 {[%emt 0:00:01]} O-O {[%emt 0:00:01]} 6. O-O {[%emt 0:00:02]} dxc4 {[%emt 0:00:00]} 7. Qc2 {[%emt 0:00:02]} a6 {[%emt 0:00:01]} 8. a4 {[%emt 0:00:06]} Bd7 {[%emt 0:00:01]} 9. Qxc4 {[%emt 0:00:01]} Bc6 {[%emt 0:00:01]} 10. Bf4 {[%emt 0:00:06]} Bd6 {[%emt 0:00:01]} 11. Qc1 {[%emt 0:00:01]} a5 {[%emt 0:00:01]} 12. Nc3 {[%emt 0:00:06]} Na6 {[%emt 0:00:01]} 13. Bd2 {[%emt 0:00:01]} Qe7 {[%emt 0:00:12]} 14. Qb1 {[%emt 0:00:06]} Bb4 {[%emt 0:00:03]} 15. Re1 {[%emt 0:00:09]} Bxf3 {[%emt 0:00:02]} 16. Bxf3 {[%emt 0:00:07]} Rad8 {[%emt 0:00:03]} 17. Bxb7 {[%emt 0:00:10]} Nc5 {[%emt 0:00:09]} 18. dxc5 {[%emt 0:00:50]} Rxd2 {[%emt 0:00:00]} 19. Ne4 {[%emt 0:00:08]} Nxe4 {[%emt 0:00:46]} 20. Bxe4 {[%emt 0:00:05]} Qf6 {[%emt 0:00:17]} 21. Bxh7+ {[%emt 0:00:55]} Kh8 {[%emt 0:00:02]} 22. Bd3 {[%emt 0:00:01]} Rxb2 {[%emt 0:00:25]} 23. Qc1 {[%emt 0:00:01]} Bxe1 {[%emt 0:00:05]} 24. Qxe1 {[%emt 0:00:01]} Rb4 {[%emt 0:00:01]} 25. c6 {[%emt 0:00:03]} Rd8 {[%emt 0:00:26]} 26. Kg2 {[%emt 0:00:11]} Qd4 {[%emt 0:00:13]} 27. Bb5 {[%emt 0:00:16]} g6 {[%emt 0:00:31]} 28. Rc1 {[%emt 0:00:05]} Kg7 {[%emt 0:00:09]} 29. Qc3 {[%emt 0:00:07]} Qxc3 {[%emt 0:00:06]} 30. Rxc3 {[%emt 0:00:02]} g5 {[%emt 0:00:01]} 31. h3 {[%emt 0:00:03]} f5 {[%emt 0:00:09]} 32. f3 {[%emt 0:00:40]} Kf6 {[%emt 0:00:10]} 33. Rc1 {[%emt 0:00:05]} Rbd4 {[%emt 0:00:13]} 34. Rc3 {[%emt 0:00:12]} Rd1 {[%emt 0:00:09]} 35. Rc5 {[%emt 0:00:07]} R8d5 {[%emt 0:00:04]} 36. Rc3 {[%emt 0:00:01]} Ra1 {[%emt 0:00:10]} 37. f4 {[%emt 0:00:09]} gxf4 {[%emt 0:00:20]} 38. gxf4 {[%emt 0:00:01]} Rdd1 {[%emt 0:00:01]} 39. Kf3 {[%emt 0:00:16]} Rh1 {[%emt 0:00:08]} 40. Kf2 {[%emt 0:00:01]} Raf1+ {[%emt 0:00:03]} 41. Kg2 {[%emt 0:00:01]} Rhg1+ {[%emt 0:00:01]} 42. Kh2 {[%emt 0:00:00]} Rg7 {[%emt 0:00:05]} 43. e3 {[%emt 0:00:04]} Rf2+ {[%emt 0:00:01]} 44. Kh1 {[%emt 0:00:01]} Rf3 {[%emt 0:00:01]} 45. Kh2 {[%emt 0:00:03]} Rgg3 {[%emt 0:00:01]} 46. Bf1 {[%emt 0:00:03]} Rxe3 {[%emt 0:00:01]} 47. Rc5 {[%emt 0:00:01]} Rgf3 {[%emt 0:00:02]} 48. Kg2 {[%emt 0:00:01]} Rxf4 {[%emt 0:00:04]} 49. Rxa5 {[%emt 0:00:07]} Ra3 {[%emt 0:00:02]} 50. Ra7 {[%emt 0:00:01]} Ra2+ {[%emt 0:00:01]} 0-1

[Event "Speed Chess Championship 2020"]
[Site "Online"]
[Date "2020.11.19"]
[Round "2.4"]
[White "Duda, Jan-Krzysztof"]
[Black "So, Wesley"]
[Result "0-1"]
[ECO "C54"]
[WhiteElo "2743"]
[BlackElo "2816"]
[Annotator "RC"]
[PlyCount "112"]
[EventDate "2020.10.31"]
[EventType "k.o."]
[EventCountry "NET"]
[SourceTitle "playchess.com"]
[Source "ChessBase"]
[SourceQuality "1"]
[TimeControl "300+1"]

1. e4 {[%emt 0:00:01]} e5 {[%emt 0:00:01]} 2. Nf3 {[%emt 0:00:00]} Nc6 {[%emt 0:00:00]} 3. Bc4 {[%emt 0:00:02]} Nf6 {[%emt 0:00:02]} 4. d3 {[%emt 0:00:02]} Bc5 {[%emt 0:00:01]} 5. O-O {[%emt 0:00:03]} O-O {[%emt 0:00:02]} 6. Bg5 {[%emt 0:00:04]} h6 {[%emt 0:00:02]} 7. Bh4 {[%emt 0:00:00]} g5 {[%emt 0:00:03]} 8. Bg3 {[%emt 0:00:03]} d6 {[%emt 0:00:00]} 9. c3 {[%emt 0:00:02]} a6 {[%emt 0:00:08]} 10. Bb3 {[%emt 0:00:03]} Ba7 {[%emt 0:00:04]} 11. Nbd2 {[%emt 0:00:04]} Kg7 {[%emt 0:00:03]} 12. Re1 {[%emt 0:00:19]} Ng8 {[%emt 0:00:12]} 13. Nf1 {[%emt 0:00:24]} f5 {[%emt 0:00:12]} 14. exf5 {[%emt 0:00:00]} Bxf5 {[%emt 0:00:01]} 15. Ne3 {[%emt 0:00:01]} Bxe3 {[%emt 0:00:10]} 16. fxe3 {[%emt 0:00:27]} Nf6 {[%emt 0:00:12]} 17. e4 {[%emt 0:00:08]} Bg4 {[%emt 0:00:09]} 18. h3 {[%emt 0:00:01]} Bh5 {[%emt 0:00:05]} 19. Rf1 {[%emt 0:00:01]} Qe7 {[%emt 0:00:03]} 20. Qd2 {[%emt 0:00:07]} Bg6 {[%emt 0:00:04]} 21. Rae1 {[%emt 0:00:10]} Nh5 {[%emt 0:00:03]} 22. Bh2 {[%emt 0:00:05]} Nf4 {[%emt 0:00:13]} 23. Kh1 {[%emt 0:00:21]} Rf6 {[%emt 0:00:06]} 24. Rf2 {[%emt 0:00:40]} Raf8 {[%emt 0:00:02]} 25. Ref1 {[%emt 0:00:01]} Nd8 {[%emt 0:00:37]} 26. Ng1 {[%emt 0:00:08]} Nde6 {[%emt 0:00:08]} 27. Bc2 {[%emt 0:00:14]} c5 {[%emt 0:00:04]} 28. g3 {[%emt 0:00:05]} Nh5 {[%emt 0:00:07]} 29. Kg2 {[%emt 0:00:03]} c4 {[%emt 0:00:10]} 30. dxc4 {[%emt 0:00:16]} Nc5 {[%emt 0:00:03]} 31. Qe3 {[%emt 0:00:01]} Rxf2+ {[%emt 0:00:04]} 32. Rxf2 {[%emt 0:00:01]} Rxf2+ {[%emt 0:00:02]} 33. Kxf2 {[%emt 0:00:00]} Qf7+ {[%emt 0:00:13]} 34. Nf3 {[%emt 0:00:03]} Qxc4 {[%emt 0:00:05]} 35. b3 {[%emt 0:00:03]} Nxe4+ {[%emt 0:00:04]} 36. Bxe4 {[%emt 0:00:07]} Qxe4 {[%emt 0:00:00]} 37. Qxe4 {[%emt 0:00:01]} Bxe4 {[%emt 0:00:00]} 38. Nd2 {[%emt 0:00:00]} Bd5 {[%emt 0:00:01]} 39. h4 {[%emt 0:00:18]} g4 {[%emt 0:00:10]} 40. c4 {[%emt 0:00:04]} Bc6 {[%emt 0:00:02]} 41. Nf1 {[%emt 0:00:01]} Nf6 {[%emt 0:00:08]} 42. Ke1 {[%emt 0:00:01]} Kg6 {[%emt 0:00:05]} 43. Bg1 {[%emt 0:00:01]} Ne4 {[%emt 0:00:08]} 44. Bb6 {[%emt 0:00:10]} h5 {[%emt 0:00:03]} 45. Ke2 {[%emt 0:00:01]} Kf5 {[%emt 0:00:16]} 46. Kd3 {[%emt 0:00:07]} Ke6 {[%emt 0:00:05]} 47. Kc2 {[%emt 0:00:19]} d5 {[%emt 0:00:03]} 48. cxd5+ {[%emt 0:00:00]} Kxd5 {[%emt 0:00:03]} 49. Ba5 {[%emt 0:00:05]} Nd6 {[%emt 0:00:09]} 50. Ne3+ {[%emt 0:00:20]} Ke4 {[%emt 0:00:02]} 51. Bb4 {[%emt 0:00:01]} Nb5 {[%emt 0:00:12]} 52. Nc4 {[%emt 0:00:01]} Nd4+ {[%emt 0:00:02]} 53. Kd1 {[%emt 0:00:04]} Kf3 {[%emt 0:00:11]} 54. Bd6 {[%emt 0:00:06]} e4 {[%emt 0:00:07]} 55. Nd2+ {[%emt 0:00:02]} Kg2 {[%emt 0:00:05]} 56. Bf4 {[%emt 0:00:02]} Nf5 {[%emt 0:00:01]} 0-1

[Event "Speed Chess Championship 2020"]
[Site "Online"]
[Date "2020.12.03"]
[Round "2.7"]
[White "Nakamura, Hikaru"]
[Black "Fedoseev, Vladimir"]
[Result "1-0"]
[ECO "D43"]
[WhiteElo "2736"]
[BlackElo "2676"]
[Annotator "ChessBase"]
[PlyCount "61"]
[EventDate "2020.10.31"]
[EventType "k.o."]
[EventCountry "NET"]
[SourceTitle "playchess.com"]
[Source "ChessBase"]
[SourceQuality "1"]
[TimeControl "300+1"]

1. d4 {[%emt 0:00:01]} d5 {[%emt 0:00:02]} 2. c4 {[%emt 0:00:01]} e6 {[%emt 0:00:02]} 3. Nf3 {[%emt 0:00:01]} Nf6 {[%emt 0:00:01]} 4. Nc3 {[%emt 0:00:01]} c6 {[%emt 0:00:02]} 5. Bg5 {[%emt 0:00:01]} h6 {[%emt 0:00:01]} 6. Bxf6 {[%emt 0:00:02]} Qxf6 {[%emt 0:00:00]} 7. e3 {[%emt 0:00:00]} Nd7 {[%emt 0:00:01]} 8. Bd3 {[%emt 0:00:01]} dxc4 {[%emt 0:00:01]} 9. Bxc4 {[%emt 0:00:00]} Bd6 {[%emt 0:00:01]} 10. O-O {[%emt 0:00:01]} Qe7 {[%emt 0:00:00]} 11. a3 {[%emt 0:00:08]} O-O {[%emt 0:00:01]} 12. Qd3 {[%emt 0:00:01]} Rd8 {[%emt 0:00:02]} 13. Rfd1 {[%emt 0:00:02]} a5 {[%emt 0:00:07]} 14. Rac1 {[%emt 0:00:21]} b6 {[%emt 0:00:36]} 15. e4 {[%emt 0:01:25]} Bb7 {[%emt 0:00:10]} 16. e5 {[%emt 0:00:02]} Bc7 {[%emt 0:00:04]} 17. Qe4 {[%emt 0:00:00]} Rab8 {[%emt 0:00:08]} 18. Bd3 {[%emt 0:00:05]} Nf8 {[%emt 0:00:06]} 19. Qe3 {[%emt 0:00:07]} c5 {[%emt 0:00:16]} 20. Nb5 {[%emt 0:00:04]} Rbc8 {[%emt 0:00:18]} 21. Be4 {[%emt 0:00:09]} Bb8 {[%emt 0:00:06]} 22. a4 {[%emt 0:00:17]} Ba6 {[%emt 0:00:04]} 23. h4 {[%emt 0:00:08]} Bxb5 {[%emt 0:00:03]} 24. axb5 {[%emt 0:00:01]} cxd4 {[%emt 0:00:09]} 25. Rxc8 {[%emt 0:00:22]} Rxc8 {[%emt 0:00:04]} 26. Nxd4 {[%emt 0:00:01]} Qxh4 {[%emt 0:00:57]} 27. Nc6 {[%emt 0:00:03]} Bc7 {[%emt 0:00:02]} 28. g3 {[%emt 0:00:06]} Qg4 {[%emt 0:00:03]} 29. Bf3 {[%emt 0:00:04]} Qa4 {[%emt 0:00:07]} 30. Ne7+ {[%emt 0:00:02]} Kh8 {[%emt 0:00:01]} 31. Nxc8 {[%emt 0:00:00]} 1-0

[Event "Speed Chess Championship 2020"]
[Site "Online"]
[Date "2020.12.03"]
[Round "2.9"]
[White "Nakamura, Hikaru"]
[Black "Fedoseev, Vladimir"]
[Result "1-0"]
[ECO "B06"]
[WhiteElo "2736"]
[BlackElo "2676"]
[Annotator "RC"]
[PlyCount "155"]
[EventDate "2020.10.31"]
[EventType "k.o."]
[EventCountry "NET"]
[SourceTitle "playchess.com"]
[Source "ChessBase"]
[SourceQuality "1"]
[TimeControl "180+1"]

1. d4 {[%emt 0:00:01]} g6 {[%emt 0:00:01]} 2. e4 {[%emt 0:00:04]} Bg7 {[%emt 0:00:02]} 3. Nc3 {[%emt 0:00:01]} a6 {[%emt 0:00:01]} 4. f4 {[%emt 0:00:03]} b5 {[%emt 0:00:00]} 5. Nf3 {[%emt 0:00:00]} Bb7 {[%emt 0:00:01]} 6. Bd3 {[%emt 0:00:00]} d6 {[%emt 0:00:01]} 7. e5 {[%emt 0:00:01]} Nd7 {[%emt 0:00:04]} 8. Qe2 {[%emt 0:00:08]} Nh6 {[%emt 0:00:04]} 9. a4 {[%emt 0:00:03]} b4 {[%emt 0:00:01]} 10. Ne4 {[%emt 0:00:00]} O-O {[%emt 0:00:01]} 11. O-O {[%emt 0:00:01]} c5 {[%emt 0:00:10]} 12. dxc5 {[%emt 0:00:16]} d5 {[%emt 0:00:01]} 13. Ng3 {[%emt 0:00:19]} Nxc5 {[%emt 0:00:16]} 14. Be3 {[%emt 0:00:16]} Nxd3 {[%emt 0:00:07]} 15. Qxd3 {[%emt 0:00:04]} a5 {[%emt 0:00:06]} 16. Rfd1 {[%emt 0:00:04]} e6 {[%emt 0:00:00]} 17. h3 {[%emt 0:00:04]} Qc7 {[%emt 0:00:02]} 18. Nd4 {[%emt 0:00:03]} Rfc8 {[%emt 0:00:03]} 19. Qd2 {[%emt 0:00:05]} Kh8 {[%emt 0:00:05]} 20. Rac1 {[%emt 0:00:04]} Ba6 {[%emt 0:00:05]} 21. c3 {[%emt 0:00:02]} bxc3 {[%emt 0:00:53]} 22. Rxc3 {[%emt 0:00:01]} Qd7 {[%emt 0:00:01]} 23. Rxc8+ {[%emt 0:00:04]} Bxc8 {[%emt 0:00:07]} 24. b3 {[%emt 0:00:01]} Ng8 {[%emt 0:00:06]} 25. Rc1 {[%emt 0:00:03]} Bf8 {[%emt 0:00:06]} 26. Rc2 {[%emt 0:00:04]} Bb7 {[%emt 0:00:08]} 27. Qc1 {[%emt 0:00:04]} Rc8 {[%emt 0:00:15]} 28. Rxc8 {[%emt 0:00:02]} Bxc8 {[%emt 0:00:02]} 29. Nf1 {[%emt 0:00:13]} Ba6 {[%emt 0:00:03]} 30. Nd2 {[%emt 0:00:01]} Bb4 {[%emt 0:00:03]} 31. N2f3 {[%emt 0:00:01]} Ne7 {[%emt 0:00:02]} 32. Bd2 {[%emt 0:00:01]} Qb7 {[%emt 0:00:02]} 33. Bxb4 {[%emt 0:00:04]} Qxb4 {[%emt 0:00:02]} 34. Qc7 {[%emt 0:00:02]} Kg7 {[%emt 0:00:12]} 35. Kh2 {[%emt 0:00:15]} h6 {[%emt 0:00:01]} 36. Qd6 {[%emt 0:00:05]} Bd3 {[%emt 0:00:08]} 37. Qxb4 {[%emt 0:00:08]} axb4 {[%emt 0:00:01]} 38. Ne1 {[%emt 0:00:01]} Be4 {[%emt 0:00:01]} 39. Kg1 {[%emt 0:00:04]} Kf8 {[%emt 0:00:01]} 40. a5 {[%emt 0:00:05]} Ke8 {[%emt 0:00:02]} 41. a6 {[%emt 0:00:01]} Nc8 {[%emt 0:00:00]} 42. Nb5 {[%emt 0:00:09]} Kd7 {[%emt 0:00:02]} 43. a7 {[%emt 0:00:01]} d4 {[%emt 0:00:00]} 44. Nd3 {[%emt 0:00:03]} Nxa7 {[%emt 0:00:02]} 45. Nc5+ {[%emt 0:00:04]} Kc6 {[%emt 0:00:01]} 46. Nxe4 {[%emt 0:00:01]} Nxb5 {[%emt 0:00:01]} 47. Kf2 {[%emt 0:00:01]} Kd5 {[%emt 0:00:00]} 48. Nf6+ {[%emt 0:00:01]} Kc5 {[%emt 0:00:02]} 49. Ke2 {[%emt 0:00:02]} h5 {[%emt 0:00:04]} 50. g3 {[%emt 0:00:03]} Nc3+ {[%emt 0:00:06]} 51. Kd3 {[%emt 0:00:01]} Na2 {[%emt 0:00:02]} 52. Ne4+ {[%emt 0:00:02]} Kd5 {[%emt 0:00:00]} 53. Nf6+ {[%emt 0:00:01]} Kc5 {[%emt 0:00:01]} 54. Ne4+ {[%emt 0:00:06]} Kd5 {[%emt 0:00:01]} 55. Nf6+ {[%emt 0:00:03]} Kc6 {[%emt 0:00:02]} 56. Kxd4 {[%emt 0:00:04]} Nc1 {[%emt 0:00:00]} 57. Kc4 {[%emt 0:00:00]} Ne2 {[%emt 0:00:01]} 58. Ne4 {[%emt 0:00:01]} h4 {[%emt 0:00:01]} 59. gxh4 {[%emt 0:00:00]} Nxf4 {[%emt 0:00:01]} 60. Ng5 {[%emt 0:00:00]} Kd7 {[%emt 0:00:01]} 61. Nxf7 {[%emt 0:00:02]} Nxh3 {[%emt 0:00:01]} 62. Kxb4 {[%emt 0:00:01]} Nf4 {[%emt 0:00:00]} 63. Kc5 {[%emt 0:00:02]} Ng2 {[%emt 0:00:01]} 64. b4 {[%emt 0:00:01]} Nxh4 {[%emt 0:00:01]} 65. b5 {[%emt 0:00:00]} Nf5 {[%emt 0:00:01]} 66. b6 {[%emt 0:00:02]} Ng3 {[%emt 0:00:02]} 67. Ng5 {[%emt 0:00:02]} Nf5 {[%emt 0:00:03]} 68. Nxe6 {[%emt 0:00:01]} Kc8 {[%emt 0:00:01]} 69. Nd4 {[%emt 0:00:03]} Ne7 {[%emt 0:00:02]} 70. Kd6 {[%emt 0:00:00]} Ng8 {[%emt 0:00:01]} 71. e6 {[%emt 0:00:06]} Kb7 {[%emt 0:00:00]} 72. Kc5 {[%emt 0:00:00]} g5 {[%emt 0:00:01]} 73. Nf5 {[%emt 0:00:01]} g4 {[%emt 0:00:01]} 74. Kb5 {[%emt 0:00:01]} Kb8 {[%emt 0:00:02]} 75. Kc6 {[%emt 0:00:01]} Kc8 {[%emt 0:00:02]} 76. e7 {[%emt 0:00:01]} Nxe7+ {[%emt 0:00:01]} 77. Nxe7+ {[%emt 0:00:01]} Kb8 {[%emt 0:00:00]} 78. Nf5 {[%emt 0:00:00]} 1-0